fUST/lending_fUST_20251004
["ID","MTS","AMOUNT","RATE_DAILY","PERIOD"]
[389154234,1759591910232,-151.0,0.00021918,2]
[389154235,1759591910245,-151.0,0.00021918,2]
[389154236,1759591910258,-151.0,0.00021918,2]
[389154237,1759591910271,-151.0,0.00021918,2]
[389154238,1759591910285,-151.0,0.00021918,2]
[389154239,1759591910298,-151.0,0.00021918,2]
[389154240,1759591910311,-151.0,0.00021918,2]
[389154241,1759591910325,-151.0,0.00021918,2]
[389154242,1759591910339,-151.0,0.00021918,2]
[389154243,1759591910354,-151.0,0.00021918,2]
[389154244,1759591910368,-151.0,0.00021918,2]
[389154245,1759591910383,-151.0,0.00021918,2]
[389154246,1759591910396,-279.94924,0.00021918,2]
[389154247,1759591910409,-284.504356,0.00021918,2]
[389154248,1759591910424,-151.0,0.00021918,2]
[389154249,1759591910438,-151.0,0.00021918,2]
[389154250,1759591910452,-151.0,0.00021918,2]
[389154251,1759591910465,-151.0,0.00021918,2]
[389154252,1759591910479,-151.0,0.00021918,2]
[389154253,1759591910492,-151.0,0.00021918,2]
[389154254,1759591910506,-151.0,0.00021918,2]
[389154255,1759591910520,-151.0,0.00021918,2]
[389154256,1759591910535,-151.0,0.00021918,2]
[389154257,1759591910548,-151.0,0.00021918,2]
[389154258,1759591910561,-151.0,0.00021918,2]
[389154259,1759591910575,-151.0,0.00021918,2]
[389154260,1759591910589,-151.0,0.00021918,2]
[389154261,1759591910605,-151.0,0.00021918,2]
[389154262,1759591910618,-151.0,0.00021918,2]
[389154263,1759591910632,-151.0,0.00021918,2]
[389154264,1759591910645,-151.0,0.00021918,2]
[389154265,1759591910658,-151.0,0.00021918,2]
[389154266,1759591910672,-229.568657,0.00021918,2]
[389154267,1759591910687,-151.825,0.00021918,7]
[389154268,1759591910700,-300.0,0.00021918,2]
[389154269,1759591910714,-498.81057376,0.00021918,2]
[389154270,1759591910728,-151.0,0.00021918,2]
[389154271,1759591910742,-500.0,0.00021918,2]
[389154272,1759591910757,-198.59750664,0.00021918,2]
[389154273,1759591910772,-500.0,0.00021918,2]
[389154274,1759591910787,-500.0,0.00021918,2]
[389154275,1759591910803,-151.0,0.00021918,2]
[389154276,1759591910819,-500.0,0.00021918,2]
[389154277,1759591910836,-151.0,0.00021918,2]
[389154278,1759591910853,-500.0,0.00021918,2]
[389154279,1759591910872,-500.0,0.00021918,2]
[389154280,1759591910889,-151.0,0.00021918,2]
[389154281,1759591910905,-500.0,0.00021918,2]
[389154282,1759591910922,-500.0,0.00021918,2]
[389154283,1759591910940,-255.0,0.00021918,2]
[389154284,1759591910962,-151.0,0.00021918,2]
[389154285,1759591910979,-151.0,0.00021918,2]
[389154286,1759591910999,-1443.0,0.00021918,2]
[389154287,1759591911015,-500.0,0.00021918,2]
[389154288,1759591911031,-500.0,0.00021918,2]
[389154289,1759591911047,-500.0,0.00021918,2]
[389154290,1759591911063,-151.0,0.00021918,2]
[389154291,1759591911079,-151.44785783,0.00021918,2]
[389154292,1759591911095,-500.0,0.00021918,2]
[389154293,1759591911111,-500.0,0.00021918,2]
[389154294,1759591911127,-500.0,0.00021918,2]
[389154295,1759591911144,-500.0,0.00021918,2]
[389154296,1759591911160,-500.0,0.00021918,2]
[389154297,1759591911179,-150.0,0.00021947,2]
[389154298,1759591911201,-476.0,0.00021951,2]
[389154299,1759591911215,-500.0,0.00021959,2]
[389154300,1759591911229,-2500.0,0.00021964,2]
[389154301,1759591911245,-2500.0,0.00021964,2]
[389154302,1759591911258,-2500.0,0.00021964,2]
[389154303,1759591911275,-2500.0,0.00021964,2]
[389154304,1759591911289,-2500.0,0.00021964,2]
[389154305,1759591911303,-2500.0,0.00021964,2]
[389154306,1759591911317,-320.28633768,0.00021964,2]
[389154307,1759591911332,-2500.0,0.00021964,2]
[389154308,1759591911581,-1006.14616624,0.00021964,2]
[389154309,1759591911600,-2506.77432438,0.00021964,2]
[389154310,1759591911610,-960.0,0.00021985,2]
[389154311,1759591911619,-30528.6755508,0.00022,2]
[389154312,1759591911628,-3414.14,0.00022,2]
[389154313,1759591911638,-9890.64,0.00022,2]
[389154314,1759591911647,-151.0,0.00022,7]
[389154315,1759591911656,-151.0,0.00022,7]
[389154316,1759591911665,-151.0,0.00022,7]
[389154317,1759591911674,-151.0,0.00022,7]
[389154318,1759591911683,-365.33562705,0.00022,5]
[389154319,1759591911696,-500.0,0.00022012,2]
[389154320,1759591911705,-168.0,0.00022028,2]
[389154321,1759591911714,-280.4,0.000221,2]
[389154322,1759591911723,-476.0,0.00022106,2]
[389154323,1759591911732,-476.0,0.00022155,2]
[389154324,1759591911742,-291.3763659,0.00022156,2]
[389154325,1759591911752,-2500.0,0.00022164,2]
[389154326,1759591911762,-1928.53236321,0.00022164,2]
[389154327,1759591911772,-2500.0,0.00022164,2]
[389154328,1759591911781,-1000.0,0.00022164,2]
[389154329,1759591911791,-476.0,0.00022177,2]
[389154330,1759591911800,-200.0,0.0002219,2]
[389154331,1759591911809,-161.63464176,0.0002219,2]
[389154332,1759591911819,-500.0,0.00022191,3]
[389154333,1759591911829,-1039.39,0.00022191,3]
[389154334,1759591911838,-507.83,0.00022191,3]
[389154335,1759591911847,-151.0,0.00022191,7]
[389154336,1759591911860,-151.0,0.00022191,7]
[389154337,1759591911870,-151.0,0.00022191,7]
[389154338,1759591911880,-151.0,0.00022191,7]
[389154339,1759591911890,-500.0,0.00022191,3]
[389154340,1759591911902,-1109.72,0.00022191,3]
[389154341,1759591911912,-151.0,0.00022191,7]
[389154342,1759591911921,-151.0,0.00022191,7]
[389154343,1759591911932,-658.4,0.00022191,3]
[389154344,1759591911946,-500.0,0.00022191,3]
[389154345,1759591911956,-500.0,0.00022191,3]
[389154346,1759591911967,-1722.53,0.00022191,3]
[389154347,1759591911976,-500.0,0.00022191,3]
[389154348,1759591911985,-500.0,0.00022191,3]
[389154349,1759591911995,-500.0,0.00022191,3]
[389154350,1759591912004,-500.0,0.00022191,3]
[389154351,1759591912014,-561.02,0.00022191,3]
[389154352,1759591912024,-500.0,0.00022191,3]
[389154353,1759591912032,-500.0,0.00022191,3]
[389154354,1759591912042,-606.7,0.00022191,3]
[389154355,1759591912051,-576.96,0.00022191,3]
[389154356,1759591912061,-500.0,0.00022191,3]
[389154357,1759591912070,-815.78,0.00022191,3]
[389154358,1759591912079,-500.0,0.00022191,3]
[389154359,1759591912089,-500.0,0.00022191,3]
[389154360,1759591912098,-551.35,0.00022191,3]
[389154361,1759591912107,-503.54,0.00022191,3]
[389154362,1759591912118,-552.14,0.00022191,3]
[389154363,1759591912127,-500.0,0.00022191,3]
[389154364,1759591912136,-585.77604444,0.00022191,3]
[389154365,1759591912145,-500.0,0.00022191,3]
[389154366,1759591912156,-983.77,0.00022191,3]
[389154367,1759591912165,-717.9,0.00022191,3]
[389154368,1759591912174,-535.53,0.00022191,3]
[389154369,1759591912184,-539.76,0.00022191,3]
[389154370,1759591912198,-1081.73,0.00022191,3]
[389154371,1759591912208,-785.95,0.00022191,3]
[389154372,1759591912217,-500.0,0.00022191,3]
[389154373,1759591912227,-996.16,0.00022191,3]
[389154374,1759591912236,-500.0,0.00022191,3]
[389154375,1759591912246,-1061.25,0.00022191,3]
[389154376,1759591912255,-500.0,0.00022191,3]
[389154377,1759591912264,-1035.1,0.00022191,3]
[389154378,1759591912274,-571.62,0.00022191,3]
[389154379,1759591912283,-940.09,0.00022191,3]
[389154380,1759591912291,-500.0,0.00022191,3]
[389154381,1759591912301,-500.0,0.00022191,3]
[389154382,1759591912311,-685.26,0.00022191,3]
[389154383,1759591912320,-1089.32,0.00022191,3]
[389154384,1759591912329,-521.57,0.00022191,3]
[389154385,1759591912338,-500.0,0.00022191,3]
[389154386,1759591912347,-500.0,0.00022191,3]
[389154387,1759591912357,-500.0,0.00022191,3]
[389154388,1759591912367,-500.0,0.00022191,3]
[389154389,1759591912378,-500.0,0.00022191,3]
[389154390,1759591912388,-500.0,0.00022191,3]
[389154391,1759591912397,-500.0,0.00022191,3]
[389154392,1759591912407,-556.89,0.00022191,3]
[389154393,1759591912416,-500.0,0.00022191,3]
[389154394,1759591912426,-935.25,0.00022191,3]
[389154395,1759591912435,-638.24,0.00022191,3]
[389154396,1759591912448,-500.0,0.00022191,3]
[389154397,1759591912457,-3190.15,0.00022191,3]
[389154398,1759591912467,-500.0,0.00022191,3]
[389154399,1759591912477,-295.42193492,0.00022191,3]
[389154400,1759591912486,-500.0,0.00022191,3]
[389154401,1759591912495,-1767.35,0.00022191,3]
[389154402,1759591912505,-500.0,0.00022191,3]
[389154403,1759591912515,-500.0,0.00022191,3]
[389154404,1759591912528,-1021.71,0.00022191,3]
[389154405,1759591912538,-467.18751227,0.00022191,3]
[389154406,1759591912548,-722.22,0.00022191,3]
[389154407,1759591912558,-512.79,0.00022191,3]
[389154408,1759591912568,-500.0,0.00022191,3]
[389154409,1759591912577,-1130.19,0.00022191,3]
[389154410,1759591912587,-500.0,0.00022191,3]
[389154411,1759591912596,-594.94,0.00022191,3]
[389154412,1759591912607,-500.0,0.00022191,3]
[389154413,1759591912616,-1634.65,0.00022191,3]
[389154414,1759591912626,-755.21,0.00022191,3]
[389154415,1759591912635,-638.84,0.00022191,3]
[389154416,1759591912645,-1184.66,0.00022191,3]
[389154417,1759591912654,-1037.44,0.00022191,3]
[389154418,1759591912663,-500.0,0.00022191,3]
[389154419,1759591912672,-1102.84,0.00022191,3]
[389154420,1759591912681,-500.0,0.00022191,3]
[389154421,1759591912694,-500.0,0.00022191,3]
[389154422,1759591912703,-500.0,0.00022191,3]
[389154423,1759591912713,-500.0,0.00022191,3]
[389154424,1759591912723,-888.19,0.00022191,3]
[389154425,1759591912732,-500.0,0.00022191,3]
[389154426,1759591912741,-707.88,0.00022191,3]
[389154427,1759591912750,-500.0,0.00022191,3]
[389154428,1759591912760,-3472.11,0.00022191,3]
[389154429,1759591912769,-607.97,0.00022191,3]
[389154430,1759591912779,-500.0,0.00022191,3]
[389154431,1759591912788,-2253.27,0.00022191,3]
[389154432,1759591912798,-500.0,0.00022191,3]
[389154433,1759591912807,-1207.5,0.00022191,3]
[389154434,1759591912818,-896.72,0.00022191,3]
[389154435,1759591912827,-1747.71,0.00022191,3]
[389154436,1759591912836,-500.0,0.00022191,3]
[389154437,1759591912846,-595.63,0.00022191,3]
[389154438,1759591912858,-500.0,0.00022191,2]
[389154439,1759591912868,-827.71,0.00022191,3]
[389154440,1759591912877,-504.25,0.00022191,3]
[389154441,1759591912887,-500.0,0.00022191,3]
[389154442,1759591912896,-890.07,0.00022191,3]
[389154443,1759591912906,-500.0,0.00022191,3]
[389154444,1759591912915,-914.63,0.00022191,3]
[389154445,1759591912926,-1015.82,0.00022191,3]
[389154446,1759591912938,-500.0,0.00022191,3]
[389154447,1759591912948,-500.0,0.00022191,3]
[389154448,1759591912958,-532.07,0.00022191,3]
[389154449,1759591912968,-870.38,0.00022191,3]
[389154450,1759591912977,-500.0,0.00022191,3]
[389154451,1759591912987,-3160.55,0.00022191,3]
[389154452,1759591912997,-1519.75,0.00022191,3]
[389154453,1759591913006,-1300.89,0.00022191,3]
[389154454,1759591913016,-2067.67,0.00022191,3]
[389154455,1759591913028,-614.77,0.00022191,3]
[389154456,1759591913038,-857.26,0.00022191,3]
[389154457,1759591913049,-560.4,0.00022191,3]
[389154458,1759591913060,-500.0,0.00022191,3]
[389154459,1759591913070,-731.76,0.00022191,3]
[389154460,1759591913080,-1254.52,0.00022191,3]
[389154461,1759591913090,-500.0,0.00022191,3]
[389154462,1759591913100,-341.08258778,0.00022191,3]
[389154463,1759591913110,-1479.56,0.00022191,3]
[389154464,1759591913119,-3943.88,0.00022191,3]
[389154465,1759591913130,-500.0,0.00022191,3]
[389154466,1759591913140,-1175.17,0.00022191,3]
[389154467,1759591913151,-1420.43,0.00022191,3]
[389154468,1759591913162,-3237.92,0.00022191,3]
[389154469,1759591913173,-1919.12,0.00022191,3]
[389154470,1759591913183,-968.29,0.00022191,3]
[389154471,1759591913199,-668.17,0.00022191,3]
[389154472,1759591913209,-4834.1,0.00022191,3]
[389154473,1759591913219,-863.7,0.00022191,3]
[389154474,1759591913229,-4308.41,0.00022191,3]
[389154475,1759591913239,-1158.05,0.00022191,3]
[389154476,1759591913249,-500.0,0.00022191,3]
[389154477,1759591913258,-1128.4,0.00022191,3]
[389154478,1759591913268,-500.0,0.00022191,3]
[389154479,1759591913279,-1888.79,0.00022191,3]
[389154480,1759591913288,-500.0,0.00022191,3]
[389154481,1759591913298,-500.0,0.00022191,3]
[389154482,1759591913308,-3598.98,0.00022191,3]
[389154483,1759591913318,-500.0,0.00022191,3]
[389154484,1759591913329,-500.0,0.00022191,3]
[389154485,1759591913339,-3279.78,0.00022191,3]
[389154486,1759591913349,-2623.19,0.00022191,3]
[389154487,1759591913359,-500.0,0.00022191,3]
[389154488,1759591913369,-1046.7,0.00022191,3]
[389154489,1759591913379,-500.0,0.00022191,3]
[389154490,1759591913388,-916.44,0.00022191,3]
[389154491,1759591913398,-649.69,0.00022191,3]
[389154492,1759591913408,-500.0,0.00022191,3]
[389154493,1759591913418,-716.0,0.00022191,3]
[389154494,1759591913429,-502.19,0.00022191,3]
[389154495,1759591913442,-692.99,0.00022191,3]
[389154496,1759591913452,-500.0,0.00022191,3]
[389154497,1759591913462,-1677.96,0.00022191,3]
[389154498,1759591913472,-725.08,0.00022191,3]
[389154499,1759591913482,-500.0,0.00022191,3]
[389154500,1759591913492,-543.32,0.00022191,3]
[389154501,1759591913502,-2622.01,0.00022191,3]
[389154502,1759591913512,-1956.57,0.00022191,3]
[389154503,1759591913522,-685.43,0.00022191,3]
[389154504,1759591913533,-4582.94,0.00022191,3]
[389154505,1759591913543,-1066.95,0.00022191,3]
[389154506,1759591913552,-620.36,0.00022191,3]
[389154507,1759591913563,-1558.65,0.00022191,3]
[389154508,1759591913573,-583.58,0.00022191,3]
[389154509,1759591913583,-500.0,0.00022191,3]
[389154510,1759591913593,-850.74,0.00022191,3]
[389154511,1759591913603,-782.55,0.00022191,3]
[389154512,1759591913614,-500.0,0.00022191,3]
[389154513,1759591913623,-500.0,0.00022191,3]
[389154514,1759591913633,-837.9,0.00022191,3]
[389154515,1759591913643,-1154.37,0.00022191,3]
[389154516,1759591913654,-2615.62,0.00022191,3]
[389154517,1759591913663,-613.77,0.00022191,3]
[389154518,1759591913673,-695.31,0.00022191,3]
[389154519,1759591913683,-633.24,0.00022191,3]
[389154520,1759591913699,-3304.75,0.00022191,3]
[389154521,1759591913710,-1142.91,0.00022191,3]
[389154522,1759591913720,-1593.05,0.00022191,3]
[389154523,1759591913730,-1681.94,0.00022191,3]
[389154524,1759591913740,-2044.74,0.00022191,3]
[389154525,1759591913750,-943.18,0.00022191,3]
[389154526,1759591913760,-1325.84,0.00022191,3]
[389154527,1759591913771,-1462.47,0.00022191,3]
[389154528,1759591913781,-894.67,0.00022191,3]
[389154529,1759591913791,-1441.01,0.00022191,3]
[389154530,1759591913800,-948.86,0.00022191,3]
[389154531,1759591913811,-582.49,0.00022191,3]
[389154532,1759591913821,-1083.58,0.00022191,3]
[389154533,1759591913831,-2269.4,0.00022191,3]
[389154534,1759591913842,-859.66,0.00022191,3]
[389154535,1759591913869,-7279.62,0.00022191,3]
[389154536,1759591913880,-500.0,0.00022191,3]
[389154537,1759591913891,-885.0,0.00022191,3]
[389154538,1759591913902,-151.88682327,0.00022191,3]
[389154539,1759591913913,-500.0,0.00022191,3]
[389154540,1759591913924,-2242.57,0.00022191,3]
[389154541,1759591913935,-521.71,0.00022191,3]
[389154542,1759591913949,-1253.86,0.00022191,3]
[389154543,1759591913960,-1820.23,0.00022191,3]
[389154544,1759591913970,-1593.62,0.00022191,3]
[389154545,1759591913981,-500.0,0.00022191,3]
[389154546,1759591913992,-2434.85,0.00022191,3]
[389154547,1759591914002,-500.0,0.00022191,3]
[389154548,1759591914012,-983.67,0.00022191,3]
[389154549,1759591914023,-1438.86,0.00022191,3]
[389154550,1759591914032,-3420.09,0.00022191,3]
[389154551,1759591914043,-1155.35,0.00022191,3]
[389154552,1759591914054,-883.76,0.00022191,3]
[389154553,1759591914064,-500.0,0.00022191,3]
[389154554,1759591914075,-1284.14,0.00022191,3]
[389154555,1759591914086,-669.76,0.00022191,3]
[389154556,1759591914097,-5883.16,0.00022191,3]
[389154557,1759591914108,-5418.8,0.00022191,3]
[389154558,1759591914118,-500.0,0.00022191,3]
[389154559,1759591914129,-1049.37,0.00022191,3]
[389154560,1759591914140,-659.62,0.00022191,3]
[389154561,1759591914150,-599.3,0.00022191,3]
[389154562,1759591914160,-6787.62,0.00022191,3]
[389154563,1759591914170,-1550.12,0.00022191,3]
[389154564,1759591914180,-645.14,0.00022191,3]
[389154565,1759591914192,-1658.15,0.00022191,3]
[389154566,1759591914203,-500.0,0.00022191,3]
[389154567,1759591914213,-500.0,0.00022192,2]
[389154568,1759591914222,-382.62285056,0.00022192,2]
[389154569,1759591914232,-500.0,0.00022192,2]
[389154570,1759591914242,-247.72405421,0.00022192,2]
[389154571,1759591914252,-648.9610652,0.00022192,2]
[389154572,1759591914263,-151.0,0.00022192,2]
[389154573,1759591914273,-151.78175095,0.00022192,2]
[389154574,1759591914284,-500.0,0.00022192,2]
[389154575,1759591914294,-151.0,0.00022192,2]
[389154576,1759591914305,-500.0,0.00022192,2]
[389154577,1759591914315,-500.0,0.00022192,2]
[389154578,1759591914326,-151.0,0.00022192,2]
[389154579,1759591914336,-151.0,0.00022192,2]
[389154580,1759591914346,-1443.0,0.00022192,2]
[389154581,1759591914356,-500.0,0.00022192,2]
[389154582,1759591914367,-500.0,0.00022192,2]
[389154583,1759591914377,-411.49649785,0.00022192,2]
[389154584,1759591914387,-297.44930206,0.00022192,2]
[389154585,1759591914397,-500.0,0.00022192,2]
[389154586,1759591914407,-500.0,0.00022192,2]
[389154587,1759591914416,-500.0,0.00022192,2]
[389154588,1759591914426,-500.0,0.00022192,2]
[389154589,1759591914436,-500.0,0.00022192,2]
[389154590,1759591914450,-1911.3014004,0.00022198,2]
[389154591,1759591914460,-2000.0,0.00022198,2]
[389154592,1759591914471,-567.06153931,0.00022198,2]
[389154593,1759591914480,-2000.0,0.00022198,2]
[389154594,1759591914491,-3000.0,0.00022212,2]
[389154595,1759591914501,-500.0,0.00022233,2]
[389154596,1759591914512,-500.0,0.00022278,2]
[389154597,1759591914522,-155.805852,0.00022284,3]
[389154598,1759591914532,-225.0,0.00022299,2]
[389154599,1759591914543,-205.53121279,0.00022306,2]
[389154600,1759591914553,-500.0,0.00022308,2]
[389154601,1759591914563,-300.0,0.00022354,20]
[389154602,1759591914573,-300.0,0.00022354,20]
[389154603,1759591914583,-300.0,0.00022354,20]
[389154604,1759591914593,-300.0,0.00022354,20]
[389154605,1759591914603,-300.0,0.00022354,20]
[389154606,1759591914613,-300.0,0.00022354,20]
[389154607,1759591914623,-300.0,0.00022354,20]
[389154608,1759591914633,-300.0,0.00022354,20]
[389154609,1759591914642,-300.0,0.00022354,20]
[389154610,1759591914652,-300.0,0.00022354,20]
[389154611,1759591914662,-300.0,0.00022354,20]
[389154612,1759591914873,-300.0,0.00022354,20]
[389154613,1759591914883,-300.0,0.00022354,20]
[389154614,1759591914893,-300.0,0.00022354,20]
[389154615,1759591914903,-300.0,0.00022354,20]
[389154616,1759591914914,-600.0,0.00022354,20]
[389154617,1759591914924,-500.0,0.00022363,2]
[389154618,1759591914934,-476.0,0.00022387,2]
[389154619,1759591914947,-362.1382658,0.00022422,2]
[389154620,1759591914957,-70942.89456703,0.0002244,2]
[389154621,1759591914966,-560.0,0.0002244,2]
[389154622,1759591914977,-2114.18576353,0.0002246,2]
[389154623,1759591914986,-3500.0,0.0002246,2]
[389154624,1759591914995,-3500.0,0.0002246,2]
[389154625,1759591915005,-3500.0,0.0002246,2]
[389154626,1759591915015,-3500.0,0.0002246,2]
[389154627,1759591915025,-3500.0,0.0002246,2]
[389154628,1759591915035,-3500.0,0.0002246,2]
[389154629,1759591915045,-182.98417066,0.00022464,2]
[389154630,1759591915055,-500.0,0.00022465,3]
[389154631,1759591915064,-1039.39,0.00022465,3]
[389154632,1759591915074,-507.83,0.00022465,3]
[389154633,1759591915083,-500.0,0.00022465,3]
[389154634,1759591915092,-1109.72,0.00022465,3]
[389154635,1759591915102,-658.4,0.00022465,3]
[389154636,1759591915111,-500.0,0.00022465,3]
[389154637,1759591915120,-500.0,0.00022465,3]
[389154638,1759591915131,-151.0,0.00022465,7]
[389154639,1759591915140,-1722.53,0.00022465,3]
[389154640,1759591915150,-500.0,0.00022465,3]
[389154641,1759591915160,-500.0,0.00022465,3]
[389154642,1759591915169,-561.02,0.00022465,3]
[389154643,1759591915179,-500.0,0.00022465,3]
[389154644,1759591915190,-500.0,0.00022465,3]
[389154645,1759591915200,-606.7,0.00022465,3]
[389154646,1759591915210,-576.96,0.00022465,3]
[389154647,1759591915219,-500.0,0.00022465,3]
[389154648,1759591915229,-815.78,0.00022465,3]
[389154649,1759591915239,-500.0,0.00022465,3]
[389154650,1759591915248,-500.0,0.00022465,3]
[389154651,1759591915258,-551.35,0.00022465,3]
[389154652,1759591915267,-503.54,0.00022465,3]
[389154653,1759591915277,-552.14,0.00022465,3]
[389154654,1759591915288,-500.0,0.00022465,3]
[389154655,1759591915297,-983.77,0.00022465,3]
[389154656,1759591915306,-717.9,0.00022465,3]
[389154657,1759591915315,-535.53,0.00022465,3]
[389154658,1759591915324,-539.76,0.00022465,3]
[389154659,1759591915335,-1081.73,0.00022465,3]
[389154660,1759591915344,-785.95,0.00022465,3]
[389154661,1759591915355,-500.0,0.00022465,3]
[389154662,1759591915366,-996.16,0.00022465,3]
[389154663,1759591915376,-500.0,0.00022465,3]
[389154664,1759591915386,-1061.25,0.00022465,3]
[389154665,1759591915395,-500.0,0.00022465,3]
[389154666,1759591915405,-1035.1,0.00022465,3]
[389154667,1759591915414,-571.62,0.00022465,3]
[389154668,1759591915423,-940.09,0.00022465,3]
[389154669,1759591915432,-500.0,0.00022465,3]
[389154670,1759591915445,-500.0,0.00022465,3]
[389154671,1759591915455,-685.26,0.00022465,3]
[389154672,1759591915464,-1089.32,0.00022465,3]
[389154673,1759591915474,-521.57,0.00022465,3]
[389154674,1759591915484,-500.0,0.00022465,3]
[389154675,1759591915494,-246.75755614,0.00022465,3]
[389154676,1759591915504,-500.0,0.00022465,3]
[389154677,1759591915514,-576.80880087,0.00022465,3]
[389154678,1759591915523,-500.0,0.00022465,3]
[389154679,1759591915533,-556.89,0.00022465,3]
[389154680,1759591915543,-500.0,0.00022465,3]
[389154681,1759591915553,-935.25,0.00022465,3]
[389154682,1759591915563,-638.24,0.00022465,3]
[389154683,1759591915573,-500.0,0.00022465,3]
[389154684,1759591915583,-3190.15,0.00022465,3]
[389154685,1759591915593,-500.0,0.00022465,3]
[389154686,1759591915603,-500.0,0.00022465,3]
[389154687,1759591915613,-1767.35,0.00022465,3]
[389154688,1759591915623,-500.0,0.00022465,3]
[389154689,1759591915634,-500.0,0.00022465,3]
[389154690,1759591915646,-1021.71,0.00022465,3]
[389154691,1759591915656,-722.22,0.00022465,3]
[389154692,1759591915667,-512.79,0.00022465,3]
[389154693,1759591915677,-500.0,0.00022465,3]
[389154694,1759591915688,-1130.19,0.00022465,3]
[389154695,1759591915702,-500.0,0.00022465,3]
[389154696,1759591915712,-594.94,0.00022465,3]
[389154697,1759591915722,-500.0,0.00022465,3]
[389154698,1759591915732,-1634.65,0.00022465,3]
[389154699,1759591915741,-755.21,0.00022465,3]
[389154700,1759591915751,-638.84,0.00022465,3]
[389154701,1759591915760,-1184.66,0.00022465,3]
[389154702,1759591915769,-1037.44,0.00022465,3]
[389154703,1759591915779,-500.0,0.00022465,3]
[389154704,1759591915788,-1102.84,0.00022465,3]
[389154705,1759591915799,-169.13142331,0.00022465,3]
[389154706,1759591915808,-500.0,0.00022465,3]
[389154707,1759591915818,-500.0,0.00022465,3]
[389154708,1759591915829,-888.19,0.00022465,3]
[389154709,1759591915838,-500.0,0.00022465,3]
[389154710,1759591915850,-707.88,0.00022465,3]
[389154711,1759591915860,-500.0,0.00022465,3]
[389154712,1759591915869,-3472.11,0.00022465,3]
[389154713,1759591915880,-607.97,0.00022465,3]
[389154714,1759591915891,-500.0,0.00022465,3]
[389154715,1759591915900,-2253.27,0.00022465,3]
[389154716,1759591915910,-500.0,0.00022465,3]
[389154717,1759591915920,-1207.5,0.00022465,3]
[389154718,1759591915930,-896.72,0.00022465,3]
[389154719,1759591915944,-1747.71,0.00022465,3]
[389154720,1759591915954,-500.0,0.00022465,3]
[389154721,1759591915963,-595.63,0.00022465,3]
[389154722,1759591915973,-500.0,0.00022465,2]
[389154723,1759591915983,-827.71,0.00022465,3]
[389154724,1759591915993,-504.25,0.00022465,3]
[389154725,1759591916003,-500.0,0.00022465,3]
[389154726,1759591916012,-890.07,0.00022465,3]
[389154727,1759591916022,-449.00755382,0.00022465,3]
[389154728,1759591916031,-914.63,0.00022465,3]
[389154729,1759591916041,-1015.82,0.00022465,3]
[389154730,1759591916050,-500.0,0.00022465,3]
[389154731,1759591916060,-500.0,0.00022465,3]
[389154732,1759591916070,-532.07,0.00022465,3]
[389154733,1759591916079,-870.38,0.00022465,3]